bitfinex/quotes_SOLUSD_20250112
["timestamp","ask_amount","ask_price","bid_price","bid_amount"]
[1736696809415,14.91467813,190.59,190.53,14.91467813]
[1736696809836,14.91467813,190.58,190.53,14.91467813]
[1736696811142,14.91467813,190.59,190.53,14.91467813]
[1736696812433,14.91467813,190.58,190.53,14.91467813]
[1736696813531,14.91467813,190.57,190.51,14.91467813]
[1736696813724,14.91467813,190.56,190.5,14.91467813]
[1736696813925,14.91467813,190.57,190.51,14.91467813]
[1736696814127,14.91467813,190.57,190.52,14.91467813]
[1736696814928,14.91467813,190.58,190.52,14.91467813]
[1736696815328,14.91467813,190.59,190.54,14.91467813]
[1736696815538,16.44367813,190.6,190.55,14.91467813]
[1736696815748,1.529,190.6,190.55,14.91467813]
[1736696817344,1.529,190.6,190.5,14.91467813]
[1736696817345,1.529,190.6,190.56,14.91467813]
[1736696817542,20.0,190.59,190.56,14.91467813]
[1736696818040,20.0,190.6,190.57,14.91467813]
[1736696818351,14.91467813,190.64,190.58,14.91467813]
[1736696818553,15.41467813,190.64,190.58,14.91467813]
[1736696818854,34.91467813,190.64,190.58,14.91467813]
[1736696819642,34.91467813,190.64,190.51,30.78702938]
[1736696819643,20.0,190.64,190.59,14.91467813]
[1736696819947,20.0,190.64,190.6,14.91467813]
[1736696820145,14.91467813,190.67,190.61,14.91467813]
[1736696820743,20.0,190.64,190.61,14.91467813]
[1736696821246,20.0,190.64,190.62,14.91467813]
[1736696821443,20.0,190.64,190.61,14.91467813]
[1736696823749,16.51957813,190.69,190.63,14.91467813]
[1736696823931,14.91467813,190.7,190.65,14.91467813]
[1736696824274,14.91467813,190.71,190.65,14.91467813]
[1736696824423,14.91467813,190.7,190.65,14.91467813]
[1736696824761,14.91467813,190.7,190.64,14.91467813]
[1736696825055,14.91467813,190.69,190.63,14.91467813]
[1736696825449,14.91467813,190.65,190.59,19.49467813]
[1736696825659,14.91467813,190.63,190.59,4.58]
[1736696825959,14.91467813,190.63,190.57,14.91467813]
[1736696826471,14.91467813,190.61,190.55,21.12127813]
[1736696826650,14.91467813,190.6,190.55,4.58]
[1736696826965,1.6049,190.66,190.58,14.91467813]
[1736696826966,2.1049,190.66,190.58,14.91467813]
[1736696827136,14.91467813,190.65,190.59,14.91467813]
[1736696827330,16.51957813,190.66,190.6,14.91467813]
[1736696827634,14.91467813,190.66,190.61,14.91467813]
[1736696830253,16.57567813,190.7,190.64,14.91467813]
[1736696831336,16.57567813,190.7,190.59,31.609]
[1736696831337,14.91467813,190.69,190.63,14.91467813]
[1736696834757,14.91467813,190.68,190.63,14.91467813]
[1736696834934,14.91467813,190.69,190.63,14.91467813]
[1736696836157,14.91467813,190.68,190.63,14.91467813]
[1736696836360,14.91467813,190.66,190.61,14.91467813]
[1736696837635,14.91467813,190.66,190.6,14.91467813]
[1736696838856,14.91467813,190.66,190.58,0.12549]
[1736696839162,14.91467813,190.66,190.6,14.91467813]
[1736696840261,14.91467813,190.67,190.61,14.91467813]
[1736696840777,14.91467813,190.69,190.64,14.91467813]
[1736696841265,14.91467813,190.68,190.62,14.91467813]
[1736696841968,14.91467813,190.67,190.62,14.91467813]
[1736696842268,14.91467813,190.68,190.62,14.91467813]
[1736696842653,20.0,190.7,190.63,14.91467813]
[1736696842856,14.91467813,190.69,190.63,14.91467813]
[1736696844652,14.91467813,190.68,190.62,14.91467813]
[1736696845444,20.0,190.7,190.6,4.58]
[1736696845445,20.0,190.7,190.63,14.91467813]
[1736696845654,14.91467813,190.69,190.63,14.91467813]
[1736696846084,14.91467813,190.7,190.64,14.91467813]
[1736696846370,14.91467813,190.69,190.63,14.91467813]
[1736696849575,14.91467813,190.7,190.64,14.91467813]
[1736696849957,20.0,190.68,190.65,14.91467813]
[1736696852453,14.91467813,190.7,190.65,14.91467813]
[1736696853159,14.91467813,190.73,190.67,14.91467813]
[1736696853374,14.91467813,190.73,190.63,30.0]
[1736696853375,14.91467813,190.74,190.68,14.91467813]
[1736696854364,20.0,190.71,190.68,14.91467813]
[1736696856578,20.0,190.71,190.64,2.38027061]
[1736696856579,20.0,190.72,190.69,14.91467813]
[1736696856781,20.0,190.72,190.7,14.91467813]
[1736696857173,14.91467813,190.76,190.7,14.91467813]
[1736696858854,14.91467813,190.75,190.69,14.91467813]
[1736696859057,14.91467813,190.73,190.68,21.06467813]
[1736696859456,14.91467813,190.74,190.68,21.06467813]
[1736696860567,14.91467813,190.73,190.68,6.15]
[1736696860767,14.91467813,190.73,190.68,21.06467813]
[1736696861172,14.91467813,190.75,190.69,14.91467813]
[1736696861392,9.51584634,190.75,190.7,9.51584634]
[1736696863491,9.51584634,190.74,190.69,9.51584634]
[1736696866890,20.0,190.77,190.7,9.51584634]
[1736696867195,9.51584634,190.76,190.7,9.51584634]
[1736696869891,9.51584634,190.75,190.7,9.51584634]
[1736696870898,9.51584634,190.74,190.68,6.15]
[1736696871081,0.5,190.77,190.64,11.10964634]
[1736696871082,9.51584634,190.69,190.64,11.10964634]
[1736696871291,9.51584634,190.69,190.64,1.5938]
[1736696871683,9.51584634,190.7,190.65,9.51584634]
[1736696872077,0.5,190.76,190.68,9.51584634]
[1736696872283,9.51584634,190.74,190.69,9.51584634]
[1736696873612,9.51584634,190.7,190.64,1.5938]
[1736696873903,9.51584634,190.7,190.64,11.10964634]
[1736696874604,9.51584634,190.69,190.64,1.5938]
[1736696874898,9.51584634,190.67,190.63,6.4034]
[1736696875998,9.51584634,190.69,190.64,9.51584634]
[1736696876303,0.5,190.74,190.63,6.4034]
[1736696876304,9.51584634,190.72,190.66,9.51584634]
[1736696876485,9.51584634,190.71,190.66,9.51584634]
[1736696876689,9.51584634,190.69,190.64,9.51584634]
[1736696876905,9.51584634,190.69,190.63,6.4034]
[1736696877208,9.51584634,190.69,190.64,9.51584634]
[1736696877796,9.51584634,190.7,190.65,9.51584634]
[1736696877991,9.51584634,190.69,190.64,9.51584634]
[1736696878589,9.51584634,190.7,190.65,9.51584634]
[1736696878787,20.0,190.74,190.65,9.51584634]
[1736696879002,9.51584634,190.71,190.65,9.51584634]
[1736696879912,9.51584634,190.7,190.65,9.51584634]
[1736696880692,9.51584634,190.71,190.65,9.51584634]
[1736696881008,0.5,190.76,190.68,9.51584634]
[1736696881207,0.5,190.77,190.7,9.51584634]
[1736696881398,9.51584634,190.76,190.7,9.51584634]
[1736696881598,20.0,190.73,190.7,9.51584634]
[1736696881797,9.51584634,190.76,190.7,9.51584634]
[1736696882198,20.0,190.73,190.7,9.51584634]
[1736696882396,9.51584634,190.71,190.63,6.4034]
[1736696882603,9.51584634,190.7,190.64,9.51584634]
[1736696882915,9.51584634,190.7,190.65,9.51584634]
[1736696883390,9.51584634,190.7,190.63,6.4034]
[1736696883588,9.51584634,190.67,190.63,6.4034]
[1736696883795,9.51584634,190.66,190.61,6.1669]
[1736696884091,5.0,190.76,190.61,6.1669]
[1736696884092,0.5,190.79,190.65,9.51584634]
[1736696884296,9.51584634,190.74,190.68,9.51584634]
[1736696884716,9.51584634,190.73,190.67,9.51584634]
[1736696885114,20.0,190.71,190.68,9.51584634]
[1736696885893,9.51584634,190.71,190.65,16.16614634]
[1736696886108,9.51584634,190.7,190.65,6.6503]
[1736696886894,9.51584634,190.68,190.62,14.09584634]
[1736696887326,9.51584634,190.69,190.63,9.51584634]
[1736696888640,9.51584634,190.66,190.62,4.58]
[1736696889400,9.51584634,190.66,190.61,9.51584634]
[1736696889631,9.51584634,190.67,190.61,9.51584634]
[1736696889812,9.51584634,190.66,190.61,9.51584634]
[1736696890133,9.51584634,190.65,190.6,16.16614634]
[1736696890800,9.51584634,190.66,190.6,16.16614634]
[1736696891801,9.51584634,190.67,190.61,9.51584634]
[1736696892197,9.51584634,190.66,190.6,16.16614634]
[1736696892403,9.51584634,190.64,190.6,6.6503]
[1736696892602,9.51584634,190.65,190.6,6.6503]
[1736696892896,9.51584634,190.66,190.6,16.16614634]
[1736696895124,9.51584634,190.65,190.6,16.16614634]
[1736696895417,61.84026936,190.7,190.57,1.6643]
[1736696895418,9.51584634,190.61,190.57,1.6643]
[1736696895646,9.51584634,190.62,190.57,11.18014634]
[1736696895823,9.51584634,190.66,190.6,9.51584634]
[1736696896026,9.51584634,190.67,190.62,9.51584634]
[1736696897522,9.51584634,190.67,190.61,9.51584634]
[1736696897727,9.51584634,190.64,190.58,9.51584634]
[1736696898023,9.51584634,190.62,190.57,11.18014634]
[1736696898325,9.51584634,190.62,190.56,9.51584634]
[1736696898905,9.51584634,190.61,190.56,9.51584634]
[1736696899101,9.51584634,190.61,190.55,15.88914634]
[1736696899309,9.51584634,190.6,190.55,6.3733]
[1736696900410,9.51584634,190.59,190.54,9.51584634]
[1736696900609,9.51584634,190.59,190.53,11.18014634]
[1736696901013,9.51584634,190.6,190.55,9.51584634]
[1736696901518,0.5,190.64,190.58,9.51584634]
[1736696901706,9.51584634,190.65,190.6,9.51584634]
[1736696901906,10.01584634,190.67,190.61,9.51584634]
[1736696902329,9.51584634,190.66,190.61,9.51584634]
[1736696902712,9.51584634,190.67,190.61,9.51584634]
[1736696903224,0.5,190.69,190.62,9.51584634]
[1736696903225,20.0,190.65,190.62,9.51584634]
[1736696903436,20.0,190.65,190.62,14.88125049]
[1736696903730,14.88125049,190.68,190.62,14.88125049]
[1736696904135,14.88125049,190.67,190.61,14.88125049]
[1736696904509,14.88125049,190.67,190.62,14.88125049]
[1736696904716,14.88125049,190.68,190.63,14.88125049]
[1736696905235,14.88125049,190.67,190.62,14.88125049]
[1736696907932,14.88125049,190.66,190.6,14.88125049]
[1736696908145,15.38125049,190.65,190.59,14.88125049]
[1736696908934,14.88125049,190.65,190.59,14.88125049]
[1736696909440,14.88125049,190.65,190.6,14.88125049]
[1736696909614,14.88125049,190.66,190.6,14.88125049]
[1736696910353,14.88125049,190.64,190.58,14.88125049]
[1736696910523,14.88125049,190.63,190.58,14.88125049]
[1736696911031,14.88125049,190.65,190.59,14.88125049]
[1736696911344,14.88125049,190.68,190.62,14.88125049]
[1736696911756,34.88125049,190.68,190.62,14.88125049]
[1736696912131,14.88125049,190.69,190.64,14.88125049]
[1736696912458,14.88125049,190.7,190.64,14.88125049]
[1736696913851,14.88125049,190.69,190.64,14.88125049]
[1736696914053,14.88125049,190.69,190.63,14.88125049]
[1736696914257,14.88125049,190.68,190.63,14.88125049]
[1736696915439,14.88125049,190.69,190.63,14.88125049]
[1736696917460,14.88125049,190.69,190.64,14.88125049]
[1736696923140,14.88125049,190.68,190.63,14.88125049]
[1736696923367,9.52322539,190.68,190.63,9.52322539]
[1736696925063,9.52322539,190.68,190.61,6.1508]
[1736696925247,9.52322539,190.65,190.61,6.1508]
[1736696925448,9.52322539,190.67,190.62,9.52322539]
[1736696925643,10.02322539,190.69,190.64,9.52322539]
[1736696925843,9.52322539,190.69,190.64,9.52322539]
[1736696926671,9.52322539,190.7,190.64,9.52322539]
[1736696927040,9.52322539,190.7,190.61,6.1508]
[1736696927245,20.0,190.72,190.66,9.52322539]
[1736696927246,10.02322539,190.72,190.66,9.52322539]
[1736696927764,20.0,190.69,190.66,9.52322539]
[1736696929065,10.02322539,190.71,190.66,9.42455029]
[1736696929565,9.52322539,190.7,190.65,9.52322539]
[1736696930074,9.52322539,190.71,190.66,9.52322539]
[1736696930369,2.0733,190.74,190.67,9.52322539]
[1736696930664,9.52322539,190.72,190.67,9.52322539]
[1736696932171,0.25098,190.76,190.63,1.5582]
[1736696932172,20.0,190.76,190.68,9.52322539]
[1736696932472,10.02322539,190.75,190.69,9.52322539]
[1736696937191,0.5,190.75,190.7,9.52322539]
[1736696937395,0.5,190.75,190.71,9.52322539]
[1736696937566,29.52322539,190.76,190.71,9.52322539]
[1736696939186,0.5,190.78,190.72,9.52322539]
[1736696939391,9.52322539,190.79,190.73,9.52322539]
[1736696939693,20.0,190.76,190.73,9.52322539]
[1736696941690,9.52322539,190.77,190.71,9.52322539]
[1736696943090,10.02322539,190.76,190.71,9.52322539]
[1736696943471,10.02322539,190.76,190.7,9.52322539]
[1736696944278,10.02322539,190.76,190.65,11.163]
[1736696944279,9.52322539,190.73,190.65,11.163]
[1736696944592,9.52322539,190.73,190.67,9.52322539]
[1736696944798,9.52322539,190.73,190.68,9.52322539]
[1736696946491,9.52322539,190.74,190.69,9.52322539]
[1736696947179,9.52322539,190.7,190.65,6.603]
[1736696947396,9.52322539,190.7,190.65,16.12622539]
[1736696947597,9.52322539,190.7,190.65,6.603]
[1736696947795,9.52322539,190.69,190.65,6.603]
[1736696948097,9.52322539,190.68,190.63,1.5582]
[1736696948298,9.52322539,190.67,190.61,14.08322539]
[1736696948790,9.52322539,190.67,190.61,9.52322539]
[1736696948977,9.52322539,190.66,190.61,9.52322539]
[1736696949183,20.0,190.72,190.61,9.52322539]
[1736696949386,9.52322539,190.66,190.61,9.52322539]
[1736696949695,9.52322539,190.67,190.61,9.52322539]
[1736696950489,9.52322539,190.67,190.62,9.52322539]
[1736696950797,9.52322539,190.67,190.6,6.2362]
[1736696951096,9.52322539,190.67,190.62,9.52322539]
[1736696951289,9.52322539,190.66,190.61,9.52322539]
[1736696952096,9.52322539,190.67,190.62,9.52322539]
[1736696952280,9.52322539,190.68,190.63,9.52322539]
[1736696953972,24.276884,190.72,190.62,9.52322539]
[1736696953973,9.52322539,190.67,190.62,9.52322539]
[1736696955292,9.52322539,190.68,190.63,9.52322539]
[1736696955884,9.52322539,190.69,190.63,9.52322539]
[1736696958379,0.5,190.72,190.67,9.52322539]
[1736696958580,29.52322539,190.73,190.67,9.52322539]
[1736696958782,0.5,190.72,190.67,9.52322539]
[1736696958976,10.02322539,190.72,190.67,9.52322539]
[1736696959306,30.02322539,190.72,190.67,9.52322539]
[1736696960106,20.0,190.72,190.67,9.52322539]
[1736696960301,20.0,190.72,190.68,9.52322539]
[1736696960505,20.5,190.72,190.68,9.52322539]
[1736696960687,20.0,190.72,190.68,9.52322539]
[1736696961602,8.65409774,190.79,190.71,9.52322539]
[1736696961902,18.17732313,190.79,190.73,9.52322539]
[1736696962116,20.0,190.76,190.73,9.52322539]
[1736696962404,10.02322539,190.79,190.72,9.52322539]
[1736696962405,20.0,190.75,190.72,9.52322539]
[1736696962794,20.0,190.74,190.71,9.52322539]
[1736696963690,20.0,190.75,190.72,9.52322539]
[1736696964507,0.5,190.78,190.73,9.52322539]
[1736696964807,20.0,190.75,190.72,9.52322539]
[1736696965308,9.52322539,190.77,190.71,9.52322539]
[1736696965508,10.02322539,190.77,190.71,9.52322539]
[1736696966313,0.5,190.77,190.72,9.52322539]
[1736696966612,29.52322539,190.78,190.72,9.52322539]
[1736696966804,0.5,190.77,190.67,36.5696]
[1736696967109,0.5,190.77,190.72,9.52322539]
[1736696967310,29.52322539,190.78,190.72,9.52322539]
[1736696968990,29.52322539,190.78,190.73,9.52322539]
[1736696969689,0.5,190.85,190.77,9.52322539]
[1736696969912,9.52322539,190.83,190.77,9.52322539]
[1736696970093,20.0,190.79,190.73,1.6338]
[1736696970299,20.0,190.77,190.75,9.52322539]
[1736696971702,20.0,190.77,190.74,9.52322539]
[1736696972910,9.52322539,190.79,190.74,9.52322539]
[1736696974018,20.0,190.76,190.74,9.52322539]
[1736696974199,20.0,190.76,190.73,11.15702539]
[1736696974715,9.52322539,190.78,190.73,9.52322539]
[1736696976096,9.52322539,190.78,190.72,9.52322539]
[1736696976613,9.52322539,190.78,190.73,9.52322539]
[1736696978008,9.52322539,190.78,190.72,9.52322539]
[1736696981916,9.52322539,190.78,190.72,41.05322539]
[1736696982233,9.52322539,190.78,190.72,9.52322539]
[1736696982805,0.5,190.82,190.69,36.34098]
[1736696982806,9.52322539,190.77,190.69,36.34098]
[1736696983020,9.52322539,190.76,190.7,9.52322539]
[1736696983239,1.593,190.8,190.7,9.52322539]
[1736696983240,9.52322539,190.75,190.7,9.52322539]
[1736696983518,9.52322539,190.76,190.7,9.52322539]
[1736696984533,9.52322539,190.76,190.71,9.52322539]
[1736696984937,9.52322539,190.75,190.68,6.1938]
[1736696985103,9.52322539,190.75,190.69,9.52322539]
[1736696985503,9.52322539,190.74,190.69,9.52322539]
[1736696985704,9.52322539,190.72,190.66,4.56]
[1736696985921,9.52322539,190.71,190.66,14.08322539]
[1736696986111,9.52322539,190.7,190.65,9.52322539]
[1736696988003,9.52322539,190.71,190.65,9.52322539]
[1736696988209,9.52322539,190.71,190.66,9.52322539]
[1736696988813,9.52322539,190.72,190.67,9.52322539]
[1736696989842,20.0,190.7,190.67,9.52322539]
[1736696990013,6.4623,190.76,190.69,9.52322539]
[1736696990342,29.52322539,190.76,190.7,9.52322539]
[1736696991240,9.52322539,190.74,190.69,9.52322539]
[1736696992318,9.52322539,190.75,190.69,9.52322539]
[1736696992520,20.0,190.72,190.69,9.52322539]
[1736696994727,20.0,190.72,190.7,9.52322539]
[1736696994933,9.52322539,190.76,190.7,9.52322539]
[1736696995145,9.52322539,190.79,190.73,9.52322539]
[1736696995319,11.61622539,190.8,190.75,9.52322539]
[1736696995644,20.0,190.77,190.75,9.52322539]
[1736696996051,20.0,190.78,190.76,9.52322539]
[1736696996946,20.0,190.76,190.74,9.52322539]
[1736696997152,9.52322539,190.77,190.7,6.5081]
[1736696997352,9.52322539,190.75,190.69,9.52322539]
[1736697000738,9.52322539,190.75,190.69,9.02322539]
[1736697001438,9.52322539,190.75,190.7,9.52322539]
[1736697002863,9.52322539,190.74,190.69,9.52322539]
[1736697003675,0.5,190.77,190.66,14.08322539]
[1736697003676,9.52322539,190.71,190.66,14.08322539]
[1736697004766,9.52322539,190.71,190.66,4.56]
[1736697004930,9.52322539,190.7,190.66,4.56]
[1736697005832,9.52322539,190.68,190.63,9.52322539]
[1736697007136,9.52322539,190.69,190.63,9.52322539]
[1736697007930,9.52322539,190.69,190.64,9.52322539]
[1736697008453,9.52322539,190.68,190.63,9.52322539]
[1736697009249,9.52322539,190.68,190.62,1.6204]
[1736697009435,9.52322539,190.68,190.63,9.52322539]
[1736697010447,9.52322539,190.69,190.64,9.52322539]
[1736697010949,9.52322539,190.7,190.65,9.52322539]
[1736697011150,20.0,190.71,190.68,9.52322539]
[1736697011346,9.52322539,190.75,190.69,9.52322539]
[1736697011652,9.52322539,190.73,190.67,9.52322539]
[1736697015988,9.52322539,190.73,190.62,1.6204]
[1736697015989,9.52322539,190.73,190.68,9.52322539]
[1736697016288,20.0,190.71,190.69,9.52322539]
[1736697018041,9.52322539,190.73,190.68,9.52322539]
[1736697019475,20.0,190.71,190.68,9.52322539]
[1736697019684,20.0,190.71,190.69,9.52322539]
[1736697020556,20.0,190.71,190.68,9.52322539]
[1736697021383,20.0,190.7,190.64,31.53]
[1736697021581,20.0,190.7,190.68,9.52322539]
[1736697025181,9.52322539,190.72,190.67,9.52322539]
[1736697029686,9.52322539,190.72,190.64,31.53]
[1736697029986,9.52322539,190.72,190.67,9.52322539]
[1736697033898,9.52322539,190.71,190.62,1.87138]
[1736697034071,9.52322539,190.71,190.65,9.52322539]
[1736697034768,9.52322539,190.7,190.65,9.52322539]
[1736697035085,0.5,190.69,190.61,6.5081]
[1736697035291,9.52322539,190.66,190.61,9.52322539]
[1736697036370,20.0,190.69,190.62,9.52322539]
[1736697036692,9.52322539,190.67,190.62,9.52322539]
[1736697036993,10.02322539,190.68,190.63,9.52322539]
[1736697037892,9.52322539,190.67,190.62,9.52322539]
[1736697039990,0.62549,190.71,190.58,4.56]
[1736697040296,9.52322539,190.65,190.6,9.52322539]
[1736697040685,9.52322539,190.66,190.61,9.52322539]
[1736697041308,9.52322539,190.67,190.62,9.52322539]
[1736697041479,20.0,190.69,190.66,9.52322539]
[1736697041676,0.5,190.71,190.67,9.52322539]
[1736697042088,1.5718,190.73,190.69,9.52322539]
[1736697042289,2.0718,190.73,190.69,9.52322539]
[1736697042884,20.0,190.71,190.69,9.52322539]
[1736697043900,20.0,190.71,190.68,9.52322539]
[1736697044894,11.09502539,190.73,190.68,9.52322539]
[1736697045106,20.0,190.7,190.68,9.52322539]
[1736697045612,1.5718,190.73,190.69,9.52322539]
[1736697046107,9.52322539,190.75,190.7,9.52322539]
[1736697046280,20.0,190.72,190.7,9.52322539]
[1736697047576,20.0,190.71,190.68,9.52322539]
[1736697047780,9.52322539,190.73,190.68,9.52322539]
[1736697049486,20.0,190.74,190.68,9.52322539]
[1736697049692,29.52322539,190.74,190.68,9.52322539]
[1736697051117,20.0,190.74,190.69,9.52322539]
[1736697051320,29.52322539,190.74,190.69,9.52322539]
[1736697051699,1.5718,190.78,190.66,23.902374]
[1736697052015,1.5718,190.78,190.67,30.0]
[1736697052183,1.5718,190.78,190.73,9.52322539]
[1736697052384,20.0,190.76,190.72,9.52322539]
[1736697052697,11.09502539,190.78,190.68,4.56]
[1736697052893,9.52322539,190.79,190.74,9.52322539]
[1736697053295,20.0,190.77,190.74,9.52322539]
[1736697057123,20.0,190.77,190.7,31.53]
[1736697057124,1.5543,190.82,190.76,9.52322539]
[1736697057580,20.0,190.79,190.77,9.52322539]
[1736697058197,20.0,190.79,190.76,9.52322539]
[1736697058395,1.5543,190.86,190.78,9.52322539]
[1736697058595,11.07752539,190.86,190.8,9.52322539]
[1736697058792,1.5543,190.86,190.8,9.52322539]
[1736697058999,20.0,190.82,190.8,9.52322539]
[1736697059321,11.07752539,190.86,190.8,9.52322539]
[1736697060832,9.52322539,190.84,190.74,30.0]
[1736697060996,9.52322539,190.84,190.78,9.52322539]
[1736697061431,9.52322539,190.83,190.78,9.52322539]
[1736697062302,9.52322539,190.83,190.77,9.52322539]
[1736697062909,9.52322539,190.83,190.78,9.52322539]
[1736697063738,9.52322539,190.83,190.74,30.0]
[1736697063739,9.52322539,190.79,190.72,4.56]
[1736697063900,9.52322539,190.78,190.73,9.52322539]
[1736697064821,9.52322539,190.79,190.72,4.56]
[1736697065128,9.52322539,190.79,190.73,9.52322539]
[1736697065717,9.52322539,190.81,190.75,9.52322539]
[1736697066810,9.52322539,190.8,190.75,9.52322539]
[1736697067020,9.52322539,190.81,190.76,9.52322539]
[1736697067220,9.52322539,190.82,190.76,9.52322539]
[1736697067419,9.52322539,190.81,190.75,9.52322539]
[1736697067932,9.52322539,190.8,190.75,9.52322539]
[1736697070040,2.0543,190.86,190.77,9.52322539]
[1736697070213,9.52322539,190.84,190.78,9.52322539]
[1736697070408,9.52322539,190.84,190.79,9.52322539]
[1736697071538,2.0543,190.86,190.79,9.52322539]
[1736697071842,20.0,190.82,190.79,9.52322539]
[1736697072020,9.52322539,190.85,190.8,9.52322539]
[1736697072222,0.5,190.89,190.82,9.52322539]
[1736697072434,0.5,190.89,190.85,9.52322539]
[1736697072628,10.02322539,190.93,190.87,9.52322539]
[1736697072813,10.02322539,190.94,190.88,9.52322539]
[1736697073144,40.77048872,190.95,190.9,9.52322539]
[1736697073313,0.06369638,190.96,190.93,9.52322539]
[1736697074239,0.06369638,190.96,190.9,30.25098]
[1736697074435,0.06369638,190.96,190.93,9.52322539]
[1736697075526,0.06369638,190.96,190.93,14.8319114]
[1736697076420,0.06369638,190.96,190.92,14.8319114]
[1736697076814,0.06369638,190.96,190.94,14.8319114]
[1736697077133,0.06369638,190.96,190.95,14.8319114]
[1736697079616,0.06369638,190.96,190.94,14.8319114]
[1736697082826,0.06369638,190.96,190.95,14.8319114]
[1736697084942,0.06369638,190.96,190.95,15.2083814]
[1736697087048,0.06369638,190.96,190.95,39.1107554]
[1736697087423,0.06369638,190.96,190.95,14.8319114]
[1736697087945,0.06369638,190.96,190.95,69.89605482]
[1736697089143,0.06369638,190.96,190.95,45.99368082]
[1736697089332,0.06369638,190.96,190.95,45.2083814]
[1736697089534,0.06369638,190.96,190.95,14.8319114]
[1736697090560,0.06369638,190.96,190.95,69.89600668]
[1736697091836,0.06369638,190.96,190.95,14.8319114]
[1736697093243,0.06369638,190.96,190.95,14.9574014]
[1736697094039,0.06369638,190.96,190.95,19.5174014]
[1736697094255,0.06369638,190.96,190.95,73.6707554]
[1736697095355,0.06369638,190.96,190.95,105.2007554]
[1736697096133,0.06369638,190.96,190.95,73.6707554]
[1736697097450,0.06369638,190.96,190.95,68.32578174]
[1736697099154,0.06369638,190.96,190.95,69.11100867]
[1736697099566,0.06369638,190.96,190.95,100.64100867]
[1736697099864,0.06369638,190.96,190.95,99.85578174]
[1736697100656,0.06369638,190.96,190.95,90.368844]
[1736697100847,0.06369638,190.96,190.95,99.85578174]
[1736697106069,0.06369638,190.96,190.95,90.368844]
[1736697106275,0.06369638,190.96,190.95,99.85578174]
[1736697113756,0.06368625,190.99,190.98,30.37647]
[1736697114071,0.06368625,190.99,190.98,63.64029174]
[1736697114447,0.06368625,190.99,190.98,63.76578174]
[1736697117883,0.06368625,190.99,190.98,39.98889774]
[1736697118485,0.06368625,190.99,190.98,39.48693774]
[1736697119890,0.06368625,190.99,190.98,77.8111587]
[1736697120259,0.06368625,190.99,190.98,101.7135327]
[1736697121353,8.2095,191.1,191.01,30.0]
[1736697121560,1.6637,191.1,191.09,9.48693774]
[1736697122255,1.6637,191.14,191.09,9.48693774]
[1736697122485,1.6637,191.14,191.12,9.48693774]
[1736697124256,0.06363233,191.15,191.13,9.48693774]
[1736697125097,0.06363233,191.15,191.08,30.0]
[1736697125098,0.06363233,191.15,191.14,9.48693774]
[1736697126286,0.06363233,191.15,191.14,33.38931174]
[1736697127372,0.06363233,191.15,191.14,65.23578174]
[1736697127575,0.06363233,191.15,191.14,55.623354]
[1736697127887,0.06363233,191.15,191.14,65.11029174]
[1736697130571,0.06363233,191.15,191.13,30.0]
[1736697130769,0.06363233,191.15,191.14,9.48693774]
[1736697130976,0.06363233,191.15,191.14,4.54]
[1736697133272,0.06363233,191.15,191.14,14.02693774]
[1736697133588,0.06363233,191.15,191.14,4.54]
[1736697138359,9.55057007,191.15,191.08,61.47]
[1736697138561,9.55057007,191.15,191.09,4.54]
[1736697138562,0.06363233,191.15,191.09,4.54]
[1736697138762,9.55057007,191.15,191.1,9.48693774]
[1736697140885,9.55057007,191.15,191.08,30.0]
[1736697141093,9.48693774,191.13,191.05,4.54]
[1736697141298,9.48693774,191.1,191.04,31.47]
[1736697141593,0.5,191.12,191.01,9.48693774]
[1736697141594,9.48693774,191.06,191.01,9.48693774]
[1736697141889,9.48693774,191.06,191.0,9.48693774]
[1736697142487,9.48693774,191.05,190.99,66.08693774]
[1736697142689,9.48693774,191.05,190.99,56.6]
[1736697142690,9.48693774,191.03,190.99,56.6]
[1736697142878,9.48693774,191.02,190.99,56.6]
[1736697144193,9.48693774,191.01,190.99,56.6]
[1736697144371,9.48693774,191.02,190.99,56.6]
[1736697144875,9.48693774,191.01,190.99,56.6]
[1736697145191,9.48693774,191.02,190.99,56.6]
[1736697146004,9.48693774,191.03,190.99,56.6]
[1736697146883,9.48693774,191.02,190.99,56.6]
[1736697147095,9.48693774,191.01,190.99,56.6]
[1736697147497,9.48693774,191.02,190.99,56.6]
[1736697149901,20.0,191.04,190.99,56.6]
[1736697150112,1.6582,191.05,191.0,9.48693774]
[1736697150304,0.5,191.06,191.03,9.48693774]
[1736697150492,9.48693774,191.09,191.04,9.48693774]
[1736697150689,0.5,191.08,191.03,9.48693774]